[Event "ChessKid Cup Div-II 2023"]
[Site "Online"]
[Date "2023.05.22"]
[Round "1.3"]
[White "Andreikin, Dmitry"]
[Black "Nguyen, Ngoc Truong Son"]
[Result "1-0"]
[ECO "E16"]
[WhiteElo "2729"]
[BlackElo "2645"]
[Annotator "TA"]
[PlyCount "134"]
[EventDate "2023.05.21"]
[EventType "k.o."]
[EventCountry "NET"]
[SourceTitle "playchess.com"]
[Source "ChessBase"]
[SourceQuality "1"]
[TimeControl "900+3"]

{[%evp 17,134,18,16,0,3,0,42,42,35,44,36,32,38,26,64,64,64,40,42,41,50,33,71,50,47,51,55,56,58,56,58,58,62,60,67,62,62,62,62,62,141,21,30,25,43,24,27,22,18,30,18,21,44,36,58,20,20,20,21,21,20,0,106,0,97,97,149,109,94,9,9,9,9,9,38,39,56,61,99,70,70,70,184,177,194,148,135,0,171,140,180,170,155,155,194,150,150,52,305,134,1716,1791,1606,1470,1618,1466,1281,1148,1822,1687,1048,557,12834,12835,12837,12838,12843,12843,12846]} 1. d4 {[%emt 0:00:06]} Nf6 {[%emt 0:00:18]} 2. c4 {[%emt 0:00:02]} e6 {[%emt 0:00:03]} 3. g3 {[%emt 0:00:01]} d5 {[%emt 0:00:03]} 4. Bg2 {[%emt 0:00:02]} Bb4+ {[%emt 0:00:02]} 5. Nd2 {[%emt 0:00:01]} O-O {[%emt 0:00:04]} 6. Ngf3 {[%emt 0:00:01]} b6 {[%emt 0:00:16]} 7. O-O {[%emt 0:00:03]} Bb7 {[%emt 0:00:18]} 8. Ne5 {[%emt 0:00:01]} Nbd7 {[%emt 0:01:26]} 9. cxd5 {[%emt 0:00:03]} exd5 {[%emt 0:00:53]} 10. Qa4 {[%emt 0:00:06] E16: Queen's Indian: 4 g3 Bb7 5 Bg2 Bb4+.} a5 {[%emt 0:01:51]} 11. Ndf3 {[%emt 0:02:17]} Qe8 {[%emt 0:00:51] [#] Strongly threatening ...Nxe5.} 12. Nxd7 $146 {[%emt 0:00:41] White is slightly better.} ({Predecessor:} 12. Qc2 Bd6 13. Bf4 h6 14. Rac1 Nh5 15. Nxd7 Qxd7 16. Bxd6 cxd6 17. Nh4 Nf6 18. Qc7 Qxc7 19. Rxc7 {1-0 Gupta,A (2619)-Ahmed,S (2305) Kolkata op 3rd 2018 (7)}) 12... Qxd7 {[%emt 0:02:49]} 13. Qxd7 {[%emt 0:00:02]} Nxd7 {[%emt 0:00:02]} 14. Bf4 {[%emt 0:00:01]} c6 {[%emt 0:00:45]} 15. Rfc1 {[%emt 0:00:01]} Rae8 {[%emt 0:00:21]} 16. Bh3 {[%emt 0:00:10]} f5 {[%emt 0:00:04]} 17. Ne5 {[%emt 0:00:09]} Nxe5 {[%emt 0:00:52]} 18. Bxe5 {[%emt 0:00:00]} Be7 {[%emt 0:00:03]} 19. e3 {[%emt 0:00:20]} h5 {[%emt 0:00:19]} 20. Rc3 {[%emt 0:00:47]} Rc8 {[%emt 0:00:17]} 21. Rac1 {[%emt 0:01:25]} g6 {[%emt 0:00:14]} 22. Rb3 {[%emt 0:00:41]} b5 {[%emt 0:00:07]} 23. Rbc3 {[%emt 0:00:01]} Rfe8 {[%emt 0:00:44]} 24. Bg2 {[%emt 0:00:04]} Kf7 {[%emt 0:00:22]} 25. f4 {[%emt 0:00:03]} Ke6 {[%emt 0:00:31]} 26. Kf2 {[%emt 0:00:02]} Kd7 {[%emt 0:00:18]} 27. Bf1 {[%emt 0:00:15] White is more active.} b4 {[%emt 0:00:17]} 28. R3c2 {[%emt 0:00:02][%cal Oe3e4]} a4 {[%emt 0:00:35]} (28... Bd6 $14) 29. Bd3 {[%emt 0:00:08]} (29. e4 $1 $16 {[%cal Re4d5] exd5 is the strong threat.} fxe4 30. Bh3+ Kd8 31. Be6 (31. Bxc8 Kxc8 32. Rg1 Kd7 $16)) 29... Ra8 $11 {[%emt 0:00:10]} 30. h3 {[%emt 0:00:05]} Ba6 {[%emt 0:00:33]} 31. Ke2 {[%emt 0:01:01]} Rec8 {[%emt 0:00:11] [#]} 32. g4 $1 {[%emt 0:00:21]} hxg4 {[%emt 0:00:04]} 33. hxg4 {[%emt 0:00:00]} fxg4 {[%emt 0:00:02]} 34. Rg1 {[%emt 0:00:01]} c5 {[%emt 0:00:12]} 35. dxc5 {[%emt 0:00:06]} Rxc5 {[%emt 0:00:01]} 36. Rxc5 {[%emt 0:00:07]} Bxc5 {[%emt 0:00:00]} 37. Rxg4 {[%emt 0:00:04]} Bxd3+ {[%emt 0:00:07]} 38. Kxd3 $14 {[%emt 0:00:00][%mdl 4096] Endgame KRB-KRB} Ra6 {[%emt 0:00:01]} 39. Rh4 {[%emt 0:00:16]} b3 {[%emt 0:00:33]} (39... Re6 $11) 40. axb3 {[%emt 0:00:04]} ({White has to play} 40. Rh7+ $1 $16 Kc6 41. Rc7+ Kb6 42. a3) 40... axb3 {[%emt 0:00:01]} (40... a3 $1 $11 {keeps the balance.} 41. Rh7+ Kc6 42. bxa3 Rxa3) 41. Rh7+ $16 {[%emt 0:00:10]} Ke6 {[%emt 0:00:04]} ({Black should try} 41... Kc6) 42. Rc7 {[%emt 0:00:11]} Be7 {[%emt 0:00:12]} 43. Rb7 {[%emt 0:00:10]} (43. Bd4 $16) 43... g5 $11 {[%emt 0:00:01]} 44. fxg5 {[%emt 0:00:09]} ({Don't take} 44. Rxb3 gxf4 45. exf4 (45. Bxf4 Bf6 $14) 45... Bd6 $14) 44... Bxg5 {[%emt 0:00:04]} 45. Bd4 {[%emt 0:00:01]} Ra1 {[%emt 0:00:04]} 46. Rxb3 {[%emt 0:00:03]} Rd1+ {[%emt 0:00:08]} 47. Kc2 {[%emt 0:00:05]} Rh1 {[%emt 0:00:05]} 48. Rb5 {[%emt 0:00:06]} Re1 {[%emt 0:00:03]} 49. Kd2 {[%emt 0:00:03]} Rh1 {[%emt 0:00:03]} (49... Ra1 $14) 50. b4 $18 {[%emt 0:00:06]} Rb1 {[%emt 0:00:03]} 51. Kc2 {[%emt 0:00:06]} (51. Rb6+ $18 Kf5 52. b5) 51... Re1 $16 {[%emt 0:00:01]} 52. Kd2 {[%emt 0:00:02]} Rb1 {[%emt 0:00:01]} 53. Rb7 {[%emt 0:00:03]} Kf5 {[%emt 0:00:02]} 54. Kc2 {[%emt 0:00:12]} Re1 {[%emt 0:00:02]} 55. Kd3 {[%emt 0:00:05]} Rd1+ {[%emt 0:00:03] [#]} 56. Ke2 $1 {[%emt 0:00:00]} Rb1 {[%emt 0:00:01]} 57. b5 {[%emt 0:00:08]} ({White should play} 57. Rb6 $16) 57... Ke4 $2 {[%emt 0:00:02][%mdl 8192] [#]} (57... Ke6 $1 $14) 58. Rb8 {[%emt 0:00:01]} (58. b6 $1 $18 {is the precise move to win.}) 58... Rb3 $2 {[%emt 0:00:07][%mdl 8192] Loses the game.} (58... Kf5 $16 59. b6 Ke6) 59. Re8+ $18 {[%emt 0:00:04] White is clearly winning.} Kf5 {[%emt 0:00:02]} 60. Re5+ {[%emt 0:00:01]} Kg6 {[%emt 0:00:03]} 61. Rxd5 {[%emt 0:00:02]} Be7 {[%emt 0:00:05]} 62. Kd2 {[%emt 0:00:04]} Kf7 {[%emt 0:00:02]} 63. Kc2 {[%emt 0:00:03]} Rb4 {[%emt 0:00:01]} 64. Rf5+ {[%emt 0:00:08]} Ke8 {[%emt 0:00:05]} 65. Re5 {[%emt 0:00:04]} Rc4+ {[%emt 0:00:02]} 66. Kd3 {[%emt 0:00:00]} Rc1 {[%emt 0:00:01]} 67. Bb2 {[%emt 0:00:09]} Rc5 {[%emt 0:00:03] Weighted Error Value: White=0.23 (precise) /Black=0.27 (precise)} 1-0

[Event "ChessKid Cup Div-II 2023"]
[Site "Online"]
[Date "2023.05.22"]
[Round "1.3"]
[White "Eljanov, Pavel"]
[Black "Rasulov, Vugar"]
[Result "1/2-1/2"]
[ECO "E53"]
[WhiteElo "2705"]
[BlackElo "2523"]
[Annotator "TA"]
[PlyCount "110"]
[EventDate "2023.05.21"]
[EventType "k.o."]
[EventCountry "NET"]
[SourceTitle "playchess.com"]
[Source "ChessBase"]
[SourceQuality "1"]
[TimeControl "900+3"]

{[%evp 21,110,0,0,0,0,0,0,0,7,0,0,0,0,14,8,-16,-26,-22,-19,-91,-83,-84,-14,-18,-17,-233,-223,-225,-227,-221,-205,-250,-216,-364,-176,-204,-191,-192,-168,-200,-166,-275,-10,-17,0,0,0,0,0,0,0,-5,0,0,0,0,0,0,0,0,0,0,0,0,0,0,0,0,0,0,0,0,0,0,19,0,0,0,0,0,0,0,0,0,0,0,0,0,0,0,0]} 1. d4 {[%emt 0:00:04]} Nf6 {[%emt 0:00:05]} 2. c4 {[%emt 0:00:03]} e6 {[%emt 0:00:01]} 3. Nc3 {[%emt 0:00:01]} Bb4 {[%emt 0:00:02]} 4. e3 {[%emt 0:00:02]} O-O {[%emt 0:00:01]} 5. Bd3 {[%emt 0:00:09]} d5 {[%emt 0:00:01]} 6. a3 {[%emt 0:00:03]} Bxc3+ {[%emt 0:00:06]} 7. bxc3 {[%emt 0:00:00]} dxc4 {[%emt 0:00:00]} 8. Bxc4 {[%emt 0:00:01]} c5 {[%emt 0:00:00]} 9. Nf3 {[%emt 0:00:11]} Qc7 {[%emt 0:00:02]} 10. Be2 {[%emt 0:00:01]} b6 {[%emt 0:00:01]} 11. O-O {[%emt 0:00:08] 11.Bb2 is the hot move.} Bb7 {[%emt 0:00:03]} 12. Bb2 {[%emt 0:00:03] E53: Nimzo-Indian: Rubinstein: Main Line (4...0-0 5 Nf3 d5 6 Bd3 c5 7 0-0).} Nc6 {[%emt 0:00:13]} 13. c4 {[%emt 0:00:15]} Rfd8 {[%emt 0:00:18]} 14. Rc1 {[%emt 0:00:13]} Rac8 {[%emt 0:00:26]} 15. Re1 {[%emt 0:00:24][%cal Od4d5]} cxd4 {[%emt 0:00:28]} 16. exd4 {[%emt 0:00:02][%cal Od4d5]} Qf4 {[%emt 0:00:05] [#]} 17. h3 $146 {[%emt 0:04:16]} ({Predecessor:} 17. Bd3 Na5 18. Ne5 Qg5 19. g3 Qh5 20. Be2 Qh3 21. Bf1 {1-0 Sciarretta,R (2239)-Pazderski,L (2121) SA-2011-0-00181}) 17... Na5 {[%emt 0:01:52]} 18. d5 {[%emt 0:00:37]} exd5 {[%emt 0:00:34]} ({Resist} 18... Nxc4 19. Bxf6 gxf6 20. g3 $16) 19. Be5 {[%emt 0:00:13] This pair of bishops is nice.} Qh6 {[%emt 0:00:09][%cal Rd5c4]} 20. Nd4 {[%emt 0:01:56]} (20. c5 $1 $11) 20... dxc4 $17 {[%emt 0:00:43][%cal Oa5b3]} 21. Bf3 {[%emt 0:00:01] Strongly threatening Bxb7.} Re8 {[%emt 0:01:28]} ({Black should play} 21... Nd7 $17 22. Bxb7 Nxb7 23. Bxg7 Qxg7) 22. Bxb7 {[%emt 0:02:43]} (22. Nf5 {with more complications.} Qg5 23. Bxb7 Nxb7 24. g4) 22... Nxb7 {[%emt 0:00:02]} 23. Qf3 $2 {[%emt 0:00:44] [#]} (23. Nf5 $11 {and White stays safe.} Qg5 24. g4) 23... Rxe5 $1 $19 {[%emt 0:00:30][%mdl 64] Deflection} 24. Qxb7 {[%emt 0:00:02]} Rce8 {[%emt 0:00:09]} 25. Red1 {[%emt 0:00:21]} Qf4 {[%emt 0:01:37]} 26. Qxa7 {[%emt 0:00:16]} Rd5 {[%emt 0:00:21]} 27. Nf3 {[%emt 0:00:28]} (27. g3 $142 Qe4 28. Rxc4) 27... b5 {[%emt 0:00:18]} (27... Rxd1+ $142 28. Rxd1 c3) 28. Qb7 {[%emt 0:00:38]} h6 {[%emt 0:00:12]} 29. Re1 {[%emt 0:00:43]} Rb8 {[%emt 0:00:35]} 30. Qa7 {[%emt 0:00:09]} Rc8 {[%emt 0:00:13]} 31. Qa6 {[%emt 0:00:09]} (31. a4 $142) 31... Rcd8 $2 {[%emt 0:00:48] [#]} (31... Qc7 $19 {...Rb8 is the strong threat.} 32. Re5 Rcd8 33. Rxd5 Rxd5) 32. a4 $1 $11 {[%emt 0:00:10][%cal Ba3a4,Ba4b5,Bb5b6][%mdl 32] The position is equal.} Ne4 {[%emt 0:00:55]} 33. axb5 {[%emt 0:00:11]} Nd2 {[%emt 0:01:45]} 34. Nxd2 {[%emt 0:00:11]} Rxd2 {[%emt 0:00:00]} 35. Qa7 {[%emt 0:00:12]} Rb2 {[%emt 0:00:17]} 36. Qe3 {[%emt 0:00:28]} Qh4 {[%emt 0:00:29]} (36... Rd4 {simplifies} 37. g3 Qxe3 38. Rxe3 Rxb5 39. Re8+ Kh7) 37. b6 {[%emt 0:00:17]} Kh7 {[%emt 0:00:36]} 38. Qe4+ {[%emt 0:00:10]} Qxe4 {[%emt 0:00:01]} 39. Rxe4 {[%emt 0:00:00][%mdl 4096] Endgame KRR-KRR} Rdd2 {[%emt 0:00:06]} 40. Rf4 {[%emt 0:00:01]} f6 {[%emt 0:00:06]} 41. Rcxc4 {[%emt 0:00:03]} Rxb6 {[%emt 0:00:00]} 42. Rc7 {[%emt 0:00:02]} h5 {[%emt 0:00:08] Prevents Rg4} 43. g4 {[%emt 0:00:02]} h4 {[%emt 0:00:11]} 44. Kg2 {[%emt 0:00:08]} Kg6 {[%emt 0:00:03]} 45. Re4 {[%emt 0:00:06]} Rbb2 {[%emt 0:00:16]} 46. Rf4 {[%emt 0:00:01]} Rb3 {[%emt 0:00:06]} 47. Rf3 {[%emt 0:00:08]} Rbb2 {[%emt 0:00:02]} 48. Rf4 {[%emt 0:00:03]} Rd1 {[%emt 0:00:18]} 49. Re4 {[%emt 0:00:04] Threatens to win with Ree7.} Rbb1 {[%emt 0:00:23]} 50. Ree7 {[%emt 0:00:05]} Rg1+ {[%emt 0:00:00]} 51. Kf3 {[%emt 0:00:01]} Rb3+ {[%emt 0:00:01]} 52. Ke2 {[%emt 0:00:02]} Rb2+ {[%emt 0:00:04]} 53. Kf3 {[%emt 0:00:02]} Rb3+ {[%emt 0:00:01]} 54. Ke2 {[%emt 0:00:02]} (54. Kf4 $5 Rb4+ $8 55. Kf3 Rb3+ $11) 54... Rb2+ {[%emt 0:00:18]} 55. Kf3 {[%emt 0:00:01]} Rb3+ {[%emt 0:00:04] And White is the lucky defender.   Weighted Error Value: White=0.21 (precise) /Black=0.20 (precise)} 1/2-1/2

[Event "ChessKid Cup Div-II 2023"]
[Site "Online"]
[Date "2023.05.22"]
[Round "1.3"]
[White "Anton Guijarro, David"]
[Black "Kravtsiv, Martyn"]
[Result "1/2-1/2"]
[ECO "C92"]
[WhiteElo "2690"]
[BlackElo "2598"]
[Annotator "TA"]
[PlyCount "146"]
[EventDate "2023.05.21"]
[EventType "k.o."]
[EventCountry "NET"]
[SourceTitle "playchess.com"]
[Source "ChessBase"]
[SourceQuality "1"]
[TimeControl "900+3"]

{[%evp 19,146,16,17,20,24,0,18,18,19,8,4,7,4,12,21,7,37,7,15,28,19,21,40,19,25,0,17,7,7,7,7,5,9,5,8,10,37,0,0,14,28,18,56,58,58,66,52,51,127,19,27,20,23,12,21,21,22,24,21,14,16,0,93,27,21,14,54,54,58,59,296,91,234,227,227,227,227,227,310,291,295,14,16,18,18,0,0,0,8,8,221,7,203,196,210,196,229,229,221,189,207,8,403,8,8,8,8,8,138,8,8,8,8,8,8,8,8,8,8,0,0,0,0,0,0,0,0,0,0]} 1. e4 {[%emt 0:00:04]} e5 {[%emt 0:00:09]} 2. Nf3 {[%emt 0:00:02]} Nc6 {[%emt 0:00:03]} 3. Bb5 {[%emt 0:00:03][%cal Bf1b5,Bb5a4,Ba4b3,Bb3a2][%mdl 32]} a6 {[%emt 0:00:06]} 4. Ba4 {[%emt 0:00:03]} Nf6 {[%emt 0:00:03]} 5. O-O {[%emt 0:00:03]} Be7 {[%emt 0:00:02]} 6. Re1 {[%emt 0:00:03]} b5 {[%emt 0:00:05]} 7. Bb3 {[%emt 0:00:04]} d6 {[%emt 0:00:09]} 8. c3 {[%emt 0:00:09]} O-O {[%emt 0:00:03]} 9. h3 {[%emt 0:00:05]} Bb7 {[%emt 0:00:10]} 10. d4 {[%emt 0:00:07]} Re8 {[%emt 0:00:18]} 11. a3 {[%emt 0:00:44] C92: Closed Ruy Lopez: 9...Be6, Karpov and Flohr-Zaitsev Variations.} Bf8 {[%emt 0:00:29]} 12. Ba2 {[%emt 0:00:32] 12.d5 is a critical line.} h6 {[%emt 0:00:51]} 13. d5 {[%emt 0:00:09]} Nb8 {[%emt 0:00:05][%cal Bc6b8,Bb8d7,Bd7c5][%mdl 32] [#]} 14. b3 $146 {[%emt 0:00:07]} ({Predecessor:} 14. c4 c6 15. Nc3 bxc4 16. dxc6 Bxc6 17. Bxc4 Qc7 18. Nh4 Bd7 {1-0 Shirov,A (2673)-Erdos,V (2615) EU-chT 23rd Terme Catez 2021 (5.1)}) 14... c6 {[%emt 0:00:13][%cal Rc6d5]} 15. c4 {[%emt 0:00:02]} Nbd7 {[%emt 0:00:00]} 16. Nc3 {[%emt 0:00:40]} Rc8 {[%emt 0:01:36]} 17. Bd2 {[%emt 0:02:26]} g6 {[%emt 0:00:56]} 18. Qe2 {[%emt 0:02:53]} bxc4 {[%emt 0:01:37]} 19. bxc4 {[%emt 0:00:00]} Nc5 {[%emt 0:00:02]} 20. Rab1 {[%emt 0:00:17]} Rb8 {[%emt 0:00:39]} 21. Rb2 {[%emt 0:01:07]} Ba8 {[%emt 0:00:45]} 22. Reb1 {[%emt 0:00:12]} Qc7 {[%emt 0:01:28]} 23. Bb3 {[%emt 0:00:52]} Nxb3 {[%emt 0:00:37]} 24. Rxb3 {[%emt 0:00:01]} Rxb3 {[%emt 0:00:01]} 25. Rxb3 {[%emt 0:00:01]} Rb8 {[%emt 0:00:00]} 26. Qd1 {[%emt 0:00:25]} Nd7 {[%emt 0:01:35]} 27. Be3 {[%emt 0:01:09]} cxd5 {[%emt 0:00:40]} 28. cxd5 {[%emt 0:00:17]} Rxb3 {[%emt 0:01:39]} 29. Qxb3 {[%emt 0:00:00]} Bb7 {[%emt 0:00:01]} 30. Nd2 {[%emt 0:00:19]} Bc8 {[%emt 0:00:22]} 31. Qc4 {[%emt 0:00:27]} Qxc4 {[%emt 0:00:40]} 32. Nxc4 {[%emt 0:00:00]} f5 {[%emt 0:00:01]} 33. f3 {[%emt 0:00:03]} Kf7 {[%emt 0:00:12]} (33... Nf6 $14) 34. Na5 {[%emt 0:00:15] White is much more active.} (34. Bxh6 $16 Bxh6 35. Nxd6+ Kf6 36. Nxc8) 34... Nf6 $11 {[%emt 0:00:11]} 35. Kf2 {[%emt 0:01:30]} Ke8 {[%emt 0:00:05]} 36. Nc6 {[%emt 0:00:14]} Bd7 {[%emt 0:00:12]} 37. Ke2 {[%emt 0:00:08]} fxe4 {[%emt 0:00:07]} 38. fxe4 {[%emt 0:00:02]} g5 {[%emt 0:00:00]} 39. a4 {[%emt 0:00:13]} Be7 {[%emt 0:00:11]} 40. Kd3 {[%emt 0:00:06]} g4 {[%emt 0:00:30]} (40... Nh5 $11) 41. hxg4 {[%emt 0:00:21]} ({Don't play} 41. Bxh6 $6 gxh3 42. gxh3 Bxh3 $11) (41. h4 $16) 41... Nxg4 {[%emt 0:00:02]} 42. Bb6 {[%emt 0:00:07]} Bf8 {[%emt 0:00:01]} 43. Na2 {[%emt 0:00:13]} Nf6 {[%emt 0:00:11]} 44. Nab4 {[%emt 0:00:10]} Nh5 $2 {[%emt 0:00:01]} ({Black should play} 44... Bc8 $14) 45. Be3 $2 {[%emt 0:00:04]} (45. Nxa6 $18 {has better winning chances.} Nf4+ 46. Kd2) 45... a5 {[%emt 0:00:01]} 46. Na2 $18 {[%emt 0:00:16]} ({Not} 46. Nxa5 Bxa4 47. Nc2 Bb5+ 48. Nc4 Nf6 $11) 46... Nf4+ {[%emt 0:00:05]} 47. Bxf4 {[%emt 0:00:02]} exf4 {[%emt 0:00:00][%mdl 4096] Endgame KBB-KNN} 48. Nc3 {[%emt 0:00:01]} h5 {[%emt 0:00:03]} 49. Nxa5 {[%emt 0:00:06]} h4 {[%emt 0:00:02] [#]} 50. Nc6 $2 {[%emt 0:00:04]} (50. Ke2 $1 $18) 50... f3 $1 $11 {[%emt 0:00:02][%mdl 64] Deflection} 51. gxf3 {[%emt 0:00:01]} h3 {[%emt 0:00:00]} 52. Ne2 {[%emt 0:00:00] aiming for Ng3.} (52. Nd1 $5) 52... Bh6 {[%emt 0:00:01] ...Bxc6 is the strong threat.} (52... h2 $5 53. Ng3 $8 Bh6 $11) 53. Ng3 {[%emt 0:00:05]} Bf4 {[%emt 0:00:01]} 54. Nh1 {[%emt 0:00:01] Black must now prevent Ke2.} Bc8 $2 {[%emt 0:00:01]} (54... h2 $1 $11) 55. Nb4 $2 {[%emt 0:00:04]} (55. Ke2 $18) 55... h2 $2 {[%emt 0:00:04]} (55... Bd7 $1 $11) 56. a5 $18 {[%emt 0:00:03]} Kd7 {[%emt 0:00:01]} 57. Ke2 {[%emt 0:00:06]} ({Much less strong is} 57. a6 $6 Kc7 $16) 57... Kc7 {[%emt 0:00:03]} 58. Kf2 {[%emt 0:00:07]} Bd7 {[%emt 0:00:01]} 59. Kg2 {[%emt 0:00:01]} Bd2 {[%emt 0:00:04]} 60. Nc6 {[%emt 0:00:02]} (60. Nc2 $18) 60... Bf4 $2 {[%emt 0:00:11][%mdl 8192]} (60... Bxc6 $11 {and Black has nothing to worry.} 61. dxc6 Bxa5) 61. a6 $2 {[%emt 0:00:03]} (61. Nd4 $18 {Ne6+ would be deadly.} Bd2 62. Ne6+ Kb7 63. Ng3) 61... Bxc6 $11 {[%emt 0:00:02]} 62. dxc6 {[%emt 0:00:01]} Kxc6 {[%emt 0:00:00] KB-KN} (62... Be3 $2 63. Ng3 $18) 63. Nf2 {[%emt 0:00:02] Threatening Nd3.} (63. a7 {looks sharper.} Kb7 64. Nf2 d5 65. exd5 Kxa7 66. Nd3) 63... Kb6 {[%emt 0:00:01] [#]} (63... d5 $1 $11 {remains equal.}) 64. Ng4 {[%emt 0:00:03]} (64. Nd3 $1 $16 {[%cal Rd3f4]} Bd2 65. Kxh2) 64... Kxa6 {[%emt 0:00:03] The position is equal.} 65. Nxh2 {[%emt 0:00:00]} d5 {[%emt 0:00:12]} 66. exd5 {[%emt 0:00:04]} Kb5 {[%emt 0:00:01]} 67. Ng4 {[%emt 0:00:04]} Kc5 {[%emt 0:00:01]} 68. Nf6 {[%emt 0:00:01]} Be5 {[%emt 0:00:09]} 69. Nd7+ {[%emt 0:00:14]} Kxd5 {[%emt 0:00:00]} 70. Nxe5 {[%emt 0:00:01]} Kxe5 {[%emt 0:00:01]} 71. Kg3 {[%emt 0:00:00] Threatening mate with Kg4.} Kf5 {[%emt 0:00:01]} 72. f4 {[%emt 0:00:01]} Kf6 {[%emt 0:00:01]} 73. f5 {[%emt 0:00:00]} Kxf5 {[%emt 0:00:01] Blacks defense is rewarded with a draw.   Weighted Error Value: White=0.37/Black=0.42} 1/2-1/2

[Event "ChessKid Cup Div-II 2023"]
[Site "Online"]
[Date "2023.05.22"]
[Round "1.3"]
[White "Fedoseev, Vladimir"]
[Black "Mamedyarov, Shakhriyar"]
[Result "1/2-1/2"]
[ECO "A05"]
[WhiteElo "2680"]
[BlackElo "2738"]
[Annotator "TA"]
[PlyCount "104"]
[EventDate "2023.05.21"]
[EventType "k.o."]
[EventCountry "NET"]
[SourceTitle "playchess.com"]
[Source "ChessBase"]
[SourceQuality "1"]
[TimeControl "900+3"]

{[%evp 11,104,0,-1,-1,18,16,18,8,26,18,26,27,33,28,35,25,31,43,41,42,69,68,69,46,83,38,38,41,51,26,26,18,23,0,0,0,0,0,0,0,0,0,0,0,0,0,0,0,0,0,0,0,0,0,0,0,0,0,0,0,0,0,0,0,0,0,0,0,0,0,0,0,0,0,0,0,0,-8,-7,-8,-8,-8,0,0,0,-8,-8,-8,0,0,0,-8,0,0,0]} 1. Nf3 {[%emt 0:00:24]} d5 {[%emt 0:00:11]} 2. g3 {[%emt 0:00:06]} Nf6 {[%emt 0:00:05]} 3. Bg2 {[%emt 0:00:40]} g6 {[%emt 0:00:02]} 4. b3 {[%emt 0:00:17]} Bg7 {[%emt 0:00:08]} 5. Bb2 {[%emt 0:00:01]} O-O {[%emt 0:00:03]} 6. O-O {[%emt 0:00:01]} c5 {[%emt 0:00:22]} 7. e3 {[%emt 0:00:36] A05: Réti Opening: 1 Nf3 Nf6.} b6 {[%emt 0:00:48]} 8. d4 {[%emt 0:00:29]} Bb7 {[%emt 0:00:15]} 9. dxc5 {[%emt 0:00:16]} bxc5 {[%emt 0:00:02]} 10. Nbd2 {[%emt 0:00:03] [#]} a5 $146 {[%emt 0:01:00]} ({Predecessor:} 10... Nc6 11. c4 e6 12. cxd5 exd5 13. Ne5 Qc7 14. Nxc6 Bxc6 15. Qc2 Bb7 16. Rac1 Rac8 {0-1 Slaba,A (1932)-Puskar,D (1818) SVK-chT3A2 1819 2018 (5.2)}) 11. c4 {[%emt 0:00:05]} e6 {[%emt 0:00:55]} 12. Rc1 {[%emt 0:00:12]} Nbd7 {[%emt 0:00:01]} 13. Ne5 {[%emt 0:00:14]} Nxe5 {[%emt 0:00:12]} 14. Bxe5 {[%emt 0:00:03]} Qb6 {[%emt 0:00:00]} 15. Qc2 {[%emt 0:00:23]} Rfc8 {[%emt 0:00:52]} 16. Rfd1 {[%emt 0:00:18]} a4 {[%emt 0:00:22]} 17. Rb1 {[%emt 0:00:57]} Qa7 {[%emt 0:00:47]} 18. Qb2 {[%emt 0:00:11] White is much more active.} Ne8 {[%emt 0:00:03]} 19. Bxg7 {[%emt 0:00:15]} Nxg7 {[%emt 0:00:00]} 20. b4 {[%emt 0:01:10]} (20. Nf3 $5 {[%cal Rf3e5]}) 20... cxb4 $1 {[%emt 0:00:31]} 21. Qxb4 {[%emt 0:00:05]} Rab8 {[%emt 0:00:02]} 22. Qe7 {[%emt 0:01:00]} Nf5 {[%emt 0:00:33][%cal Bg7f5,Bf5e7,Be7c6,Bc6a5,Ba5b3,Bb3d2,Bd2f3][%mdl 32] The position is equal.} 23. Qf6 {[%emt 0:00:36]} dxc4 {[%emt 0:00:42]} 24. Bxb7 {[%emt 0:00:18]} Rxb7 {[%emt 0:00:00]} 25. Rxb7 {[%emt 0:00:54]} Qxb7 {[%emt 0:00:00]} 26. Nxc4 {[%emt 0:00:03][%mdl 64] [#] Deflection, Back Rank} Qe7 {[%emt 0:00:44]} 27. Qxe7 {[%emt 0:00:27]} Nxe7 $11 {[%emt 0:00:00][%mdl 4096] Endgame KRN-KRN} 28. Nb6 {[%emt 0:00:02][%csl LRa4,LRc8]} Rc2 {[%emt 0:00:04]} 29. a3 {[%emt 0:00:10]} Ra2 {[%emt 0:01:45]} 30. Rd3 {[%emt 0:00:09]} Nc6 {[%emt 0:00:02]} 31. f4 {[%emt 0:02:09] Prevents Ne5} Na5 {[%emt 0:00:17]} 32. g4 {[%emt 0:00:34][%cal Bg3g4,Bg4g5][%mdl 32]} Kg7 {[%emt 0:00:32]} 33. g5 {[%emt 0:00:15]} Nb3 {[%emt 0:00:10]} 34. Nxa4 {[%emt 0:00:37]} Nd2 {[%emt 0:00:09]} 35. Nc5 {[%emt 0:00:16]} Nf3+ {[%emt 0:00:04][%mdl 64] [#] Discovered Attack} 36. Kf1 {[%emt 0:00:01]} h6 {[%emt 0:00:42]} 37. gxh6+ {[%emt 0:00:50]} Kxh6 {[%emt 0:00:01]} 38. h3 {[%emt 0:00:04]} g5 {[%emt 0:00:22]} 39. Ne4 {[%emt 0:00:18]} f5 {[%emt 0:00:30]} 40. Ng3 {[%emt 0:00:32]} Nd2+ {[%emt 0:00:42]} 41. Ke1 {[%emt 0:00:01]} Nc4 {[%emt 0:00:00]} 42. Ne2 {[%emt 0:00:17]} Kh5 {[%emt 0:00:37]} 43. Rc3 {[%emt 0:00:05]} Nd2 {[%emt 0:00:37]} 44. Nd4 {[%emt 0:00:08]} Ne4 {[%emt 0:00:16]} 45. Rc8 {[%emt 0:00:07]} Rxa3 {[%emt 0:00:13]} 46. Ke2 {[%emt 0:00:02]} Nc3+ {[%emt 0:00:23]} 47. Kd2 {[%emt 0:00:06]} Ne4+ {[%emt 0:00:04]} 48. Ke2 {[%emt 0:00:01]} Ra2+ {[%emt 0:00:03]} 49. Ke1 {[%emt 0:00:02]} Ra1+ {[%emt 0:00:21]} 50. Ke2 {[%emt 0:00:01]} Ra2+ {[%emt 0:00:06]} 51. Ke1 {[%emt 0:00:01]} Ra1+ {[%emt 0:00:07]} 52. Ke2 {[%emt 0:00:02]} Ra2+ {[%emt 0:00:02] Weighted Error Value: White=0.04 (flawless) /Black=0.03 (flawless)} 1/2-1/2